[Event "*** SCC Grand Prix: Titled Tuesday Blitz"]
[Site "Chess.com"]
[Date "2020.10.06"]
[Round "4"]
[White "Viaje"]
[Black "Quiet_Desperation"]
[Result "1-0"]
[WhiteElo "2385"]
[BlackElo "1914"]
[TimeControl "180+1"]
[EndTime "10:39:10 PDT"]
[Termination "Viaje won by resignation"]

1. d4 {[%clk 0:03:00.9]} 1... d5 {[%clk 0:03:00.1]} 2. c4 {[%clk 0:03:00.9]}
2... c6 {[%clk 0:03:00.5]} 3. Nf3 {[%clk 0:03:00.7]} 3... Nf6 {[%clk 0:02:46.5]}
4. Qc2 {[%clk 0:03:00.7]} 4... g6 {[%clk 0:02:36.7]} 5. Bf4 {[%clk 0:03:00.3]}
5... dxc4 {[%clk 0:02:35.6]} 6. Qxc4 {[%clk 0:02:54.5]} 6... Bg7 {[%clk
0:02:35.5]} 7. Nc3 {[%clk 0:02:51.3]} 7... O-O {[%clk 0:02:35.5]} 8. e4 {[%clk
0:02:46.1]} 8... b5 {[%clk 0:02:35.5]} 9. Qd3 {[%clk 0:02:42.7]} 9... b4 {[%clk
0:02:35.5]} 10. Nd1 {[%clk 0:02:39.5]} 10... Ba6 {[%clk 0:02:33.6]} 11. Qe3
{[%clk 0:02:36.2]} 11... Bxf1 {[%clk 0:02:33.4]} 12. Kxf1 {[%clk 0:02:36.5]}
12... Nbd7 {[%clk 0:02:11.2]} 13. Rc1 {[%clk 0:02:35.9]} 13... Rc8 {[%clk
0:02:08.8]} 14. g3 {[%clk 0:02:28]} 14... Re8 {[%clk 0:02:06.4]} 15. Kg2 {[%clk
0:02:26.9]} 15... Ng4 {[%clk 0:02:01.6]} 16. Qb3 {[%clk 0:02:22.6]} 16... a5
{[%clk 0:01:53.7]} 17. h3 {[%clk 0:02:15.1]} 17... Ngf6 {[%clk 0:01:51.4]} 18.
Re1 {[%clk 0:02:14.6]} 18... c5 {[%clk 0:01:46.3]} 19. e5 {[%clk 0:01:51.5]}
19... Nh5 {[%clk 0:01:42.9]} 20. d5 {[%clk 0:01:41.8]} 20... e6 {[%clk
0:01:37.2]} 21. Ne3 {[%clk 0:01:37.8]} 21... Nxf4+ {[%clk 0:01:36.4]} 22. gxf4
{[%clk 0:01:37.6]} 22... Nb6 {[%clk 0:01:33.1]} 23. d6 {[%clk 0:01:35.5]} 23...
Qd7 {[%clk 0:01:27.8]} 24. Nc4 {[%clk 0:01:32.7]} 24... Nxc4 {[%clk 0:01:26]}
25. Rxc4 {[%clk 0:01:31.1]} 25... f6 {[%clk 0:01:25.1]} 26. Qe3 {[%clk
0:01:30.3]} 26... fxe5 {[%clk 0:01:06.1]} 27. fxe5 {[%clk 0:01:30.3]} 27... Rf8
{[%clk 0:01:04.6]} 28. Rxc5 {[%clk 0:01:27.4]} 28... Rxc5 {[%clk 0:01:00.3]} 29.
Qxc5 {[%clk 0:01:27.5]} 29... Qf7 {[%clk 0:01:00.6]} 30. Qe3 {[%clk 0:01:04.6]}
30... Bh6 {[%clk 0:00:59.5]} 31. Qe4 {[%clk 0:01:02.4]} 31... Qd7 {[%clk
0:00:57.7]} 32. Re2 {[%clk 0:00:45.3]} 32... Rf4 {[%clk 0:00:57.2]} 33. Qd3
{[%clk 0:00:45.2]} 33... g5 {[%clk 0:00:55.4]} 34. Nh2 {[%clk 0:00:43.9]} 34...
Bg7 {[%clk 0:00:52.5]} 35. Ng4 {[%clk 0:00:43.8]} 35... h5 {[%clk 0:00:52.4]}
36. Ne3 {[%clk 0:00:21.7]} 36... Kf7 {[%clk 0:00:41.5]} 37. Rc2 {[%clk
0:00:19.9]} 37... Qb7+ {[%clk 0:00:36.1]} 38. Kg1 {[%clk 0:00:19.6]} 38... Qf3
{[%clk 0:00:35.8]} 39. Rc7+ {[%clk 0:00:17.9]} 39... Kg8 {[%clk 0:00:35.2]} 40.
Rc8+ {[%clk 0:00:17.1]} 40... Bf8 {[%clk 0:00:34.5]} 41. Qg6+ {[%clk 0:00:16.3]}
41... Kh8 {[%clk 0:00:32.9]} 42. Qh6+ {[%clk 0:00:16.6]} 42... Kg8 {[%clk
0:00:33.3]} 43. Qxe6+ {[%clk 0:00:16.8]} 43... Kh8 {[%clk 0:00:27]} 44. Qh6+
{[%clk 0:00:16.9]} 44... Kg8 {[%clk 0:00:27.1]} 45. Qxg5+ {[%clk 0:00:17.2]}
45... Kh8 {[%clk 0:00:26.2]} 46. Qh6+ {[%clk 0:00:17.5]} 46... Kg8 {[%clk
0:00:26.2]} 47. Qg6+ {[%clk 0:00:17.8]} 47... Kh8 {[%clk 0:00:26.4]} 48. Qh6+
{[%clk 0:00:18.1]} 48... Kg8 {[%clk 0:00:26.6]} 49. Qg5+ {[%clk 0:00:18.4]}
49... Kh8 {[%clk 0:00:26.8]} 50. Qg3 {[%clk 0:00:18.6]} 50... Qe4 {[%clk
0:00:20.9]} 51. d7 {[%clk 0:00:17.1]} 51... Qb1+ {[%clk 0:00:18.2]} 52. Kg2
{[%clk 0:00:17.5]} 52... Qe4+ {[%clk 0:00:17.2]} 53. Kg1 {[%clk 0:00:17.8]}
53... Qb1+ {[%clk 0:00:17.1]} 54. Kh2 {[%clk 0:00:18.2]} 54... h4 {[%clk
0:00:14.7]} 55. Qxf4 {[%clk 0:00:17.4]} 1-0

[Event "*** SCC Grand Prix: Titled Tuesday Blitz"]
[Site "Chess.com"]
[Date "2020.10.06"]
[Round "4"]
[White "vladgoncharov"]
[Black "GMJustin"]
[Result "0-1"]
[WhiteElo "2423"]
[BlackElo "2274"]
[TimeControl "180+1"]
[EndTime "10:39:12 PDT"]
[Termination "GMJustin won on time"]

1. d4 {[%clk 0:02:15.5]} 1... d5 {[%clk 0:02:56.4]} 2. c4 {[%clk 0:02:16.4]}
2... dxc4 {[%clk 0:02:55.9]} 3. Nf3 {[%clk 0:02:16.7]} 3... b5 {[%clk
0:02:52.2]} 4. a4 {[%clk 0:02:12.9]} 4... b4 {[%clk 0:02:46.8]} 5. e3 {[%clk
0:02:11.4]} 5... Bb7 {[%clk 0:02:31]} 6. Bxc4 {[%clk 0:02:10.2]} 6... e6 {[%clk
0:02:29.1]} 7. O-O {[%clk 0:02:09.6]} 7... Nd7 {[%clk 0:02:20.3]} 8. a5 {[%clk
0:02:09.7]} 8... a6 {[%clk 0:01:56.6]} 9. Qe2 {[%clk 0:02:09.4]} 9... Ngf6
{[%clk 0:01:49]} 10. Rd1 {[%clk 0:02:08.4]} 10... Be7 {[%clk 0:01:45.6]} 11.
Nbd2 {[%clk 0:02:07.6]} 11... O-O {[%clk 0:01:41.8]} 12. e4 {[%clk 0:02:07.4]}
12... c5 {[%clk 0:01:41.6]} 13. e5 {[%clk 0:02:07.2]} 13... Nd5 {[%clk
0:01:40.3]} 14. Ne4 {[%clk 0:02:06.3]} 14... Qc7 {[%clk 0:01:29.8]} 15. Neg5
{[%clk 0:01:50.8]} 15... h6 {[%clk 0:01:20.2]} 16. Nh3 {[%clk 0:01:50.1]} 16...
Rfd8 {[%clk 0:00:47.7]} 17. Bd3 {[%clk 0:01:47.5]} 17... cxd4 {[%clk 0:00:37.8]}
18. Bd2 {[%clk 0:01:44]} 18... Nc5 {[%clk 0:00:30.9]} 19. Rdc1 {[%clk
0:01:38.3]} 19... Qd7 {[%clk 0:00:28.4]} 20. Bc4 {[%clk 0:01:38.5]} 20... d3
{[%clk 0:00:21.6]} 21. Qe1 {[%clk 0:01:37.9]} 21... Rac8 {[%clk 0:00:19]} 22.
Kh1 {[%clk 0:01:26.4]} 22... b3 {[%clk 0:00:15.5]} 23. Nhg1 {[%clk 0:01:19.3]}
23... Nc7 {[%clk 0:00:14.5]} 24. h3 {[%clk 0:01:09.2]} 24... Nb5 {[%clk
0:00:14.3]} 25. Be3 {[%clk 0:01:00.8]} 25... Ne4 {[%clk 0:00:14.4]} 26. Bd2
{[%clk 0:00:26.3]} 26... Nd4 {[%clk 0:00:13.5]} 27. Qf1 {[%clk 0:00:06.3]} 27...
Nc2 {[%clk 0:00:09.3]} 28. Rab1 {[%clk 0:00:06.3]} 28... Rxc4 {[%clk 0:00:09.3]}
29. Bc3 {[%clk 0:00:04.8]} 29... Nxc3 {[%clk 0:00:09.1]} 30. bxc3 {[%clk
0:00:04.4]} 30... d2 {[%clk 0:00:09]} 31. Nxd2 {[%clk 0:00:04.1]} 31... Qxd2
{[%clk 0:00:08]} 32. Qxc4 {[%clk 0:00:04.2]} 32... Qxf2 {[%clk 0:00:07.8]} 33.
Qg4 {[%clk 0:00:03.7]} 33... Ne3 {[%clk 0:00:06.4]} 34. Nf3 {[%clk 0:00:02.8]}
34... Nxg4 {[%clk 0:00:05.6]} 35. hxg4 {[%clk 0:00:03.7]} 35... Bxf3 {[%clk
0:00:05.6]} 36. Rb2 {[%clk 0:00:03.4]} 36... Qg3 {[%clk 0:00:05.2]} 0-1

[Event "*** SCC Grand Prix: Titled Tuesday Blitz"]
[Site "Chess.com"]
[Date "2020.10.06"]
[Round "4"]
[White "Guenplen"]
[Black "GelmanAlexander"]
[Result "0-1"]
[WhiteElo "2841"]
[BlackElo "2576"]
[TimeControl "180+1"]
[EndTime "10:39:16 PDT"]
[Termination "GelmanAlexander won by resignation"]

1. d4 {[%clk 0:03:00.9]} 1... Nf6 {[%clk 0:02:58.7]} 2. Bf4 {[%clk 0:03:01]}
2... c5 {[%clk 0:02:58.6]} 3. d5 {[%clk 0:03:00.1]} 3... d6 {[%clk 0:02:58.2]}
4. Nc3 {[%clk 0:02:59.3]} 4... Nbd7 {[%clk 0:02:58.3]} 5. e4 {[%clk 0:02:58]}
5... h6 {[%clk 0:02:52.3]} 6. h3 {[%clk 0:02:50.4]} 6... a6 {[%clk 0:02:38.3]}
7. a4 {[%clk 0:02:49.9]} 7... Qa5 {[%clk 0:02:36]} 8. Bd2 {[%clk 0:02:41.4]}
8... Rb8 {[%clk 0:02:25.3]} 9. Nf3 {[%clk 0:02:38.9]} 9... g5 {[%clk 0:02:21.4]}
10. Bd3 {[%clk 0:02:31.1]} 10... Bg7 {[%clk 0:02:17.6]} 11. O-O {[%clk
0:02:27.5]} 11... Qc7 {[%clk 0:02:15.8]} 12. Re1 {[%clk 0:02:18.4]} 12... g4
{[%clk 0:02:11.4]} 13. Nh4 {[%clk 0:02:14.1]} 13... Ne5 {[%clk 0:02:09.4]} 14.
Bf1 {[%clk 0:02:13.9]} 14... gxh3 {[%clk 0:02:07.5]} 15. g3 {[%clk 0:02:14.2]}
15... Bg4 {[%clk 0:02:01.5]} 16. f3 {[%clk 0:02:11.8]} 16... Bd7 {[%clk
0:02:00.8]} 17. Kh2 {[%clk 0:02:00.6]} 17... Rg8 {[%clk 0:01:59.4]} 18. Bf4
{[%clk 0:01:38.9]} 18... Nh5 {[%clk 0:01:51.7]} 19. Bxh3 {[%clk 0:01:33]} 19...
Bf6 {[%clk 0:01:16.2]} 20. Nf5 {[%clk 0:01:21.3]} 20... Nxf4 {[%clk 0:01:06.3]}
21. gxf4 {[%clk 0:01:20.7]} 21... Ng6 {[%clk 0:01:05.8]} 22. Rg1 {[%clk
0:01:11.4]} 22... Kf8 {[%clk 0:00:54.1]} 23. Ne2 {[%clk 0:00:58.6]} 23... Bxb2
{[%clk 0:00:47.3]} 24. Rb1 {[%clk 0:00:56.8]} 24... Bf6 {[%clk 0:00:47.4]} 25.
c4 {[%clk 0:00:54.1]} 25... b5 {[%clk 0:00:46.8]} 26. axb5 {[%clk 0:00:31.8]}
26... axb5 {[%clk 0:00:47.7]} 27. Nfg3 {[%clk 0:00:31.1]} 27... Bxh3 {[%clk
0:00:45.5]} 28. Kxh3 {[%clk 0:00:32]} 28... bxc4 {[%clk 0:00:45.4]} 29. Nf5
{[%clk 0:00:28.1]} 29... Rxb1 {[%clk 0:00:38.1]} 30. Qxb1 {[%clk 0:00:29]} 30...
c3 {[%clk 0:00:36.8]} 31. Kh2 {[%clk 0:00:25.3]} 31... e6 {[%clk 0:00:29.7]} 32.
dxe6 {[%clk 0:00:22.4]} 32... fxe6 {[%clk 0:00:30.6]} 33. Ne3 {[%clk 0:00:22.7]}
33... Nxf4 {[%clk 0:00:22.2]} 34. Rxg8+ {[%clk 0:00:19.2]} 34... Kxg8 {[%clk
0:00:23.1]} 35. Nxf4 {[%clk 0:00:20.1]} 35... d5 {[%clk 0:00:23.4]} 36. Ng2
{[%clk 0:00:14.3]} 36... Be5 {[%clk 0:00:19.3]} 37. Kg3 {[%clk 0:00:08.8]} 37...
d4 {[%clk 0:00:19.7]} 38. Qa2 {[%clk 0:00:06.5]} 38... c4 {[%clk 0:00:19.1]} 39.
Qa6 {[%clk 0:00:06.5]} 39... Qg7+ {[%clk 0:00:16.1]} 40. Kh3 {[%clk 0:00:06.1]}
40... Qe7 {[%clk 0:00:15.2]} 41. Qxc4 {[%clk 0:00:06]} 41... Kg7 {[%clk
0:00:14.6]} 42. Nd3 {[%clk 0:00:06.2]} 42... Bf6 {[%clk 0:00:13.4]} 43. f4
{[%clk 0:00:06.6]} 43... e5 {[%clk 0:00:13.4]} 44. f5 {[%clk 0:00:06.2]} 44...
Qf7 {[%clk 0:00:12.8]} 45. Kg4 {[%clk 0:00:05.5]} 45... Qxc4 {[%clk 0:00:12.6]}
0-1

[Event "*** SCC Grand Prix: Titled Tuesday Blitz"]
[Site "Chess.com"]
[Date "2020.10.06"]
[Round "4"]
[White "Obito24"]
[Black "dosto07"]
[Result "1-0"]
[WhiteElo "2559"]
[BlackElo "2354"]
[TimeControl "180+1"]
[EndTime "10:39:18 PDT"]
[Termination "Obito24 won on time"]

1. d4 {[%clk 0:03:00.3]} 1... d5 {[%clk 0:02:58.4]} 2. c4 {[%clk 0:02:55.7]}
2... dxc4 {[%clk 0:02:57.5]} 3. Nf3 {[%clk 0:02:55.4]} 3... Nf6 {[%clk 0:02:58]}
4. Nc3 {[%clk 0:02:53.8]} 4... a6 {[%clk 0:02:57.1]} 5. a4 {[%clk 0:02:53]} 5...
Nc6 {[%clk 0:02:56]} 6. e4 {[%clk 0:02:46.9]} 6... Bg4 {[%clk 0:02:54.8]} 7. Be3
{[%clk 0:02:43.7]} 7... e6 {[%clk 0:02:51.2]} 8. Bxc4 {[%clk 0:02:42.9]} 8...
Bb4 {[%clk 0:02:51.5]} 9. O-O {[%clk 0:02:36.6]} 9... Bxc3 {[%clk 0:02:37.2]}
10. bxc3 {[%clk 0:02:35.1]} 10... Nxe4 {[%clk 0:02:37.6]} 11. Qc2 {[%clk
0:02:20.6]} 11... Nd6 {[%clk 0:02:29.9]} 12. Be2 {[%clk 0:02:15.8]} 12... O-O
{[%clk 0:02:25.9]} 13. h3 {[%clk 0:02:14.3]} 13... Bf5 {[%clk 0:02:25.4]} 14.
Qb2 {[%clk 0:02:09]} 14... Na5 {[%clk 0:02:20.2]} 15. Qb4 {[%clk 0:02:00]} 15...
Nc6 {[%clk 0:01:48.5]} 16. Qa3 {[%clk 0:01:58.1]} 16... Qe7 {[%clk 0:01:39.8]}
17. c4 {[%clk 0:01:33.5]} 17... Rfd8 {[%clk 0:01:33.4]} 18. Rfc1 {[%clk
0:01:26.2]} 18... Ne4 {[%clk 0:01:17.2]} 19. Qb2 {[%clk 0:01:15.8]} 19... Rab8
{[%clk 0:01:15.3]} 20. c5 {[%clk 0:00:58.2]} 20... h6 {[%clk 0:01:07.9]} 21. a5
{[%clk 0:00:54.7]} 21... Nf6 {[%clk 0:01:01.2]} 22. Bf4 {[%clk 0:00:36.6]} 22...
Nd5 {[%clk 0:00:58.6]} 23. Bg3 {[%clk 0:00:36.4]} 23... Be4 {[%clk 0:00:51.2]}
24. Nd2 {[%clk 0:00:31.1]} 24... Bg6 {[%clk 0:00:47.1]} 25. Nc4 {[%clk
0:00:30.7]} 25... Qf6 {[%clk 0:00:43.2]} 26. Rd1 {[%clk 0:00:28.6]} 26... h5
{[%clk 0:00:32.9]} 27. Ne5 {[%clk 0:00:26.7]} 27... h4 {[%clk 0:00:27]} 28. Bh2
{[%clk 0:00:25.9]} 28... Nf4 {[%clk 0:00:23.2]} 29. Bf1 {[%clk 0:00:17.5]} 29...
Rd5 {[%clk 0:00:18.2]} 30. Nxc6 {[%clk 0:00:16.3]} 30... Re8 {[%clk 0:00:14.6]}
31. Ne5 {[%clk 0:00:16.1]} 31... Be4 {[%clk 0:00:11.8]} 32. Ng4 {[%clk
0:00:13.8]} 32... Qg5 {[%clk 0:00:10.2]} 33. Bxf4 {[%clk 0:00:12.9]} 33... Qxf4
{[%clk 0:00:09.5]} 34. Qd2 {[%clk 0:00:13.5]} 34... Qf5 {[%clk 0:00:06.8]} 35.
Ne3 {[%clk 0:00:13.3]} 35... Qh5 {[%clk 0:00:06.2]} 36. Nxd5 {[%clk 0:00:12.7]}
36... Qxd5 {[%clk 0:00:07.1]} 37. Qf4 {[%clk 0:00:12]} 37... e5 {[%clk
0:00:05.1]} 38. dxe5 {[%clk 0:00:11.7]} 38... Qc6 {[%clk 0:00:02.6]} 39. Re1
{[%clk 0:00:10.5]} 39... Bg6 {[%clk 0:00:01.8]} 40. Rac1 {[%clk 0:00:10.3]} 1-0

[Event "*** SCC Grand Prix: Titled Tuesday Blitz"]
[Site "Chess.com"]
[Date "2020.10.06"]
[Round "4"]
[White "vovachesss"]
[Black "zubridis"]
[Result "1-0"]
[WhiteElo "2674"]
[BlackElo "2469"]
[TimeControl "180+1"]
[EndTime "10:39:23 PDT"]
[Termination "vovachesss won on time"]

1. e4 {[%clk 0:02:59.1]} 1... e6 {[%clk 0:02:55.8]} 2. Qe2 {[%clk 0:02:58.8]}
2... c5 {[%clk 0:02:54.5]} 3. g3 {[%clk 0:02:53.9]} 3... Nc6 {[%clk 0:02:54.2]}
4. Bg2 {[%clk 0:02:54.5]} 4... g6 {[%clk 0:02:49.8]} 5. Nf3 {[%clk 0:02:54.5]}
5... d6 {[%clk 0:02:48.8]} 6. O-O {[%clk 0:02:55.1]} 6... Bg7 {[%clk 0:02:48.7]}
7. c3 {[%clk 0:02:55]} 7... Nge7 {[%clk 0:02:44.4]} 8. Rd1 {[%clk 0:02:55.4]}
8... e5 {[%clk 0:02:36.5]} 9. Na3 {[%clk 0:02:51.3]} 9... O-O {[%clk 0:02:35]}
10. Nc4 {[%clk 0:02:51.4]} 10... h6 {[%clk 0:02:29.4]} 11. a4 {[%clk 0:02:49.5]}
11... Be6 {[%clk 0:02:28.9]} 12. d3 {[%clk 0:02:45.3]} 12... Qd7 {[%clk
0:02:28.1]} 13. Be3 {[%clk 0:02:43.2]} 13... Rac8 {[%clk 0:02:23.7]} 14. Nfd2
{[%clk 0:01:45.9]} 14... f5 {[%clk 0:02:13.5]} 15. f4 {[%clk 0:01:42.9]} 15...
b6 {[%clk 0:02:02.6]} 16. fxe5 {[%clk 0:01:30.9]} 16... dxe5 {[%clk 0:02:00.6]}
17. Nf3 {[%clk 0:01:19]} 17... f4 {[%clk 0:01:54.5]} 18. gxf4 {[%clk 0:00:58.4]}
18... exf4 {[%clk 0:01:53.7]} 19. Bf2 {[%clk 0:00:58.7]} 19... g5 {[%clk
0:01:53.5]} 20. d4 {[%clk 0:00:40.8]} 20... g4 {[%clk 0:01:37.9]} 21. d5 {[%clk
0:00:34.6]} 21... gxf3 {[%clk 0:01:36.4]} 22. Bxf3 {[%clk 0:00:33.1]} 22... Bh3
{[%clk 0:01:26.5]} 23. dxc6 {[%clk 0:00:31.6]} 23... Qxc6 {[%clk 0:01:26.4]} 24.
Rd6 {[%clk 0:00:24.1]} 24... Qc7 {[%clk 0:01:19.2]} 25. Kh1 {[%clk 0:00:23.5]}
25... Rf6 {[%clk 0:01:01.6]} 26. e5 {[%clk 0:00:20.6]} 26... Rf5 {[%clk
0:01:01.2]} 27. Rg1 {[%clk 0:00:19.9]} 27... Rg5 {[%clk 0:00:58.1]} 28. Rxg5
{[%clk 0:00:16.4]} 28... hxg5 {[%clk 0:00:57.5]} 29. Qd3 {[%clk 0:00:15]} 29...
Bf5 {[%clk 0:00:53.3]} 30. Be4 {[%clk 0:00:14.2]} 30... Rf8 {[%clk 0:00:52.4]}
31. Bxf5 {[%clk 0:00:12.1]} 31... Nxf5 {[%clk 0:00:52.2]} 32. Qd5+ {[%clk
0:00:12.3]} 32... Qf7 {[%clk 0:00:48.4]} 33. e6 {[%clk 0:00:10.7]} 33... Qe7
{[%clk 0:00:27.5]} 34. Rd7 {[%clk 0:00:10.8]} 34... Qe8 {[%clk 0:00:16.6]} 35.
e7+ {[%clk 0:00:10.7]} 35... Kh7 {[%clk 0:00:14.7]} 36. exf8=Q {[%clk
0:00:08.8]} 36... Qxf8 {[%clk 0:00:11.4]} 37. Rf7 {[%clk 0:00:08.7]} 37... Qe8
{[%clk 0:00:08.7]} 38. Qxf5+ {[%clk 0:00:08.4]} 38... Kg8 {[%clk 0:00:08.6]} 39.
Nd6 {[%clk 0:00:04.4]} 39... Qc6+ {[%clk 0:00:07.2]} 40. Ne4 {[%clk 0:00:03.7]}
40... Qe8 {[%clk 0:00:05.3]} 41. Rxg7+ {[%clk 0:00:03.7]} 41... Kxg7 {[%clk
0:00:04.9]} 42. Qxg5+ {[%clk 0:00:04.3]} 42... Kf7 {[%clk 0:00:04.9]} 43. Nd6+
{[%clk 0:00:04.3]} 1-0

[Event "*** SCC Grand Prix: Titled Tuesday Blitz"]
[Site "Chess.com"]
[Date "2020.10.06"]
[Round "4"]
[White "crescentmoon2411"]
[Black "smshk35"]
[Result "1-0"]
[WhiteElo "2798"]
[BlackElo "2448"]
[TimeControl "180+1"]
[EndTime "10:39:23 PDT"]
[Termination "crescentmoon2411 won by resignation"]

1. d4 {[%clk 0:03:00.9]} 1... Nf6 {[%clk 0:02:59.8]} 2. c4 {[%clk 0:03:00.6]}
2... e6 {[%clk 0:02:58.7]} 3. Nc3 {[%clk 0:03:00.7]} 3... Bb4 {[%clk 0:02:58.7]}
4. g3 {[%clk 0:03:01.3]} 4... Ne4 {[%clk 0:02:55.1]} 5. Bd2 {[%clk 0:02:59.6]}
5... Nxd2 {[%clk 0:02:54.3]} 6. Qxd2 {[%clk 0:03:00.2]} 6... c5 {[%clk
0:02:54.2]} 7. Nf3 {[%clk 0:02:59.3]} 7... O-O {[%clk 0:02:52.1]} 8. Bg2 {[%clk
0:02:59.2]} 8... cxd4 {[%clk 0:02:52.3]} 9. Nxd4 {[%clk 0:02:59.7]} 9... Nc6
{[%clk 0:02:52.8]} 10. O-O {[%clk 0:02:58.6]} 10... Qb6 {[%clk 0:02:51.2]} 11.
Nc2 {[%clk 0:02:55]} 11... Ba5 {[%clk 0:02:46.9]} 12. Rab1 {[%clk 0:02:52]}
12... Nb4 {[%clk 0:02:42.1]} 13. Na4 {[%clk 0:02:41.5]} 13... Nxc2 {[%clk
0:02:15.2]} 14. Qxc2 {[%clk 0:02:42.4]} 14... Qa6 {[%clk 0:01:46.5]} 15. Nc5
{[%clk 0:02:36.9]} 15... Qb6 {[%clk 0:01:43.1]} 16. b4 {[%clk 0:02:36.6]} 16...
Bxb4 {[%clk 0:01:34.4]} 17. Nd3 {[%clk 0:02:36.3]} 17... a5 {[%clk 0:01:31.7]}
18. a3 {[%clk 0:02:36.1]} 18... d5 {[%clk 0:01:30]} 19. axb4 {[%clk 0:02:34.5]}
19... dxc4 {[%clk 0:01:27.9]} 20. Qxc4 {[%clk 0:02:35.4]} 20... a4 {[%clk
0:01:28]} 21. Nc5 {[%clk 0:02:33.1]} 21... a3 {[%clk 0:01:26.3]} 22. Ra1 {[%clk
0:02:33]} 22... Rd8 {[%clk 0:01:23.2]} 23. Ra2 {[%clk 0:02:29.6]} 23... Bd7
{[%clk 0:01:22.6]} 24. Nxd7 {[%clk 0:02:18.3]} 24... Rxd7 {[%clk 0:01:23.5]} 25.
Rfa1 {[%clk 0:02:17.7]} 25... Rd4 {[%clk 0:01:22]} 26. Qc5 {[%clk 0:02:13.8]}
26... Rxb4 {[%clk 0:01:17.6]} 27. Qxb6 {[%clk 0:02:12.4]} 27... Rxb6 {[%clk
0:01:17.1]} 28. Rxa3 {[%clk 0:02:11.1]} 28... Rxa3 {[%clk 0:01:17.1]} 29. Rxa3
{[%clk 0:02:12]} 29... g6 {[%clk 0:01:16.8]} 30. Be4 {[%clk 0:02:10.4]} 30...
Rb2 {[%clk 0:01:15.5]} 31. Bd3 {[%clk 0:02:09.8]} 31... b5 {[%clk 0:01:15.2]}
32. Ra8+ {[%clk 0:02:08.8]} 32... Kg7 {[%clk 0:01:14.9]} 33. Rb8 {[%clk
0:02:09.3]} 33... b4 {[%clk 0:01:14.9]} 34. Rb7 {[%clk 0:02:07.3]} 34... Kf6
{[%clk 0:01:14.1]} 35. f4 {[%clk 0:02:07.1]} 35... h6 {[%clk 0:01:12.6]} 36. Kf2
{[%clk 0:02:06.1]} 36... Rb3 {[%clk 0:01:10.9]} 37. h4 {[%clk 0:02:05.2]} 37...
Rb2 {[%clk 0:01:10.9]} 38. Kf3 {[%clk 0:02:04.2]} 38... h5 {[%clk 0:01:09.1]}
39. e4 {[%clk 0:01:59.8]} 39... Rb3 {[%clk 0:01:04.8]} 40. e5+ {[%clk 0:01:59]}
40... Kg7 {[%clk 0:01:04.9]} 41. Ke3 {[%clk 0:01:59.4]} 41... Rb2 {[%clk
0:01:03.9]} 42. Bc4 {[%clk 0:01:58.9]} 42... Kg8 {[%clk 0:01:00.1]} 43. Ke4
{[%clk 0:01:51.4]} 43... Rg2 {[%clk 0:00:50.9]} 44. Kf3 {[%clk 0:01:50.4]} 44...
Rb2 {[%clk 0:00:50.8]} 45. g4 {[%clk 0:01:48]} 45... Rc2 {[%clk 0:00:43.9]} 46.
Rxb4 {[%clk 0:01:44.6]} 46... Rc3+ {[%clk 0:00:43.7]} 47. Ke4 {[%clk 0:01:33.3]}
47... hxg4 {[%clk 0:00:42.6]} 48. Be2 {[%clk 0:01:32.1]} 48... Rh3 {[%clk
0:00:27.2]} 49. Bxg4 {[%clk 0:01:27.3]} 49... Rxh4 {[%clk 0:00:27.6]} 50. Kf3
{[%clk 0:01:27.4]} 50... Rh2 {[%clk 0:00:27.4]} 51. Rb7 {[%clk 0:01:25.8]} 51...
Rc2 {[%clk 0:00:26.7]} 52. Kg3 {[%clk 0:01:25.9]} 52... Rc1 {[%clk 0:00:25.6]}
53. Kh4 {[%clk 0:01:24.9]} 53... Rg1 {[%clk 0:00:21.4]} 54. Kg5 {[%clk
0:01:22.9]} 54... Kg7 {[%clk 0:00:21.8]} 55. Ra7 {[%clk 0:01:20.3]} 55... Rg2
{[%clk 0:00:21.9]} 56. Ra1 {[%clk 0:01:18.8]} 56... Rd2 {[%clk 0:00:20.1]} 57.
Bxe6 {[%clk 0:01:13.9]} 57... fxe6 {[%clk 0:00:20.5]} 58. Ra7+ {[%clk
0:01:13.8]} 58... Kf8 {[%clk 0:00:19.1]} 59. Kf6 {[%clk 0:01:13.5]} 59... Kg8
{[%clk 0:00:12.6]} 60. Kxg6 {[%clk 0:01:12.4]} 60... Rg2+ {[%clk 0:00:11.1]} 61.
Kf6 {[%clk 0:01:12.7]} 61... Rg4 {[%clk 0:00:11.1]} 62. f5 {[%clk 0:01:10.5]}
62... exf5 {[%clk 0:00:10.3]} 63. e6 {[%clk 0:01:09.8]} 63... Rb4 {[%clk
0:00:08]} 64. Ra8+ {[%clk 0:01:09.2]} 64... Kh7 {[%clk 0:00:07.9]} 65. e7 {[%clk
0:01:09.7]} 65... Rb6+ {[%clk 0:00:07.4]} 66. Kxf5 {[%clk 0:01:08.4]} 66... Rb5+
{[%clk 0:00:05.9]} 67. Ke6 {[%clk 0:01:08.5]} 67... Rb6+ {[%clk 0:00:05.9]} 68.
Kd5 {[%clk 0:01:07.5]} 68... Rb5+ {[%clk 0:00:06.1]} 69. Kc6 {[%clk 0:01:05.7]}
69... Re5 {[%clk 0:00:06.8]} 70. e8=Q {[%clk 0:01:05.4]} 1-0